bitfinex/quotes_SOLUSD_20220118
["timestamp","ask_amount","ask_price","bid_price","bid_amount"]
[1642497308195,6.0,137.35,137.26,0.25]
[1642497308494,13.392,137.38,137.27,12.5507479]
[1642497308698,10.48,137.38,137.29,39.13129795]
[1642497308895,10.48,137.38,137.3,0.25]
[1642497309096,10.48,137.42,137.3,0.25]
[1642497309296,2.912,137.41,137.3,23.0969]
[1642497309495,2.912,137.42,137.37,10.9149]
[1642497309895,42.29533082,137.42,137.37,10.9149]
[1642497310097,2.912,137.42,137.37,10.9149]
[1642497310698,24.7476,137.47,137.39,10.913]
[1642497310699,13.391,137.46,137.39,10.913]
[1642497310899,13.391,137.46,137.4,0.25]
[1642497311099,45.06685575,137.45,137.38,0.25]
[1642497312398,2.91,137.44,137.38,0.25]
[1642497312599,47.97685575,137.45,137.4,49.4336954]
[1642497312798,47.97685575,137.45,137.41,0.25]
[1642497312799,2.91,137.45,137.41,0.25]
[1642497312999,13.39,137.46,137.41,0.25]
[1642497313200,10.48,137.46,137.41,0.25]
[1642497313810,10.48,137.46,137.41,11.1625]
[1642497314002,10.48,137.5,137.41,11.1625]
[1642497314202,2.91,137.52,137.41,17.4225]
[1642497314401,2.91,137.52,137.41,41.3607]
[1642497314803,2.91,137.52,137.47,44.62127258]
[1642497315205,2.908,137.56,137.48,0.25]
[1642497315702,2.908,137.58,137.48,0.25]
[1642497316704,2.908,137.58,137.48,11.1572]
[1642497316906,10.69705272,137.58,137.48,11.1572]
[1642497317106,47.32985806,137.57,137.48,11.1572]
[1642497317305,2.908,137.56,137.48,11.1572]
[1642497317504,4.69705272,137.56,137.48,11.1572]
[1642497317904,12.84305272,137.56,137.48,11.1572]
[1642497318504,12.84305272,137.56,137.48,10.9072]
[1642497318705,12.84305272,137.56,137.46,11.45741872]
[1642497318912,12.84305272,137.56,137.46,0.54921872]
[1642497318913,12.26905272,137.55,137.46,0.54921872]
[1642497319112,10.9101,137.53,137.46,0.54921872]
[1642497319311,3.158,137.52,137.46,0.54921872]
[1642497319608,39.83846743,137.51,137.46,0.54921872]
[1642497319810,3.158,137.5,137.42,49.75074592]
[1642497320009,2.908,137.5,137.46,0.54921872]
[1642497320208,2.908,137.51,137.46,0.54921872]
[1642497320409,2.908,137.52,137.46,0.54921872]
[1642497320609,2.908,137.53,137.46,0.54921872]
[1642497320810,17.44315474,137.54,137.46,0.79921872]
[1642497321012,14.53515474,137.54,137.46,0.79921872]
[1642497321213,14.53515474,137.54,137.46,11.70801872]
[1642497321417,4.05515474,137.54,137.46,11.96801872]
[1642497321611,6.96315474,137.56,137.46,17.96801872]
[1642497321811,6.96315474,137.56,137.46,41.20211872]
[1642497322312,6.96315474,137.56,137.46,107.57211872]
[1642497322512,2.908,137.56,137.46,107.57211872]
[1642497322812,34.70669301,137.55,137.46,113.57211872]
[1642497323013,34.70669301,137.55,137.46,107.57211872]
[1642497323212,0.25,137.54,137.46,107.32211872]
[1642497323412,2.908,137.53,137.46,107.32211872]
[1642497323612,34.70669301,137.55,137.46,107.32211872]
[1642497324611,34.70669301,137.55,137.49,10.9059]
[1642497324813,34.70669301,137.55,137.5,0.25]
[1642497325213,2.908,137.56,137.5,0.25]
[1642497325414,8.908,137.56,137.52,0.54921872]
[1642497325614,2.908,137.56,137.52,0.54921872]
[1642497326013,2.908,137.56,137.52,11.45321872]
[1642497326214,2.908,137.56,137.52,51.21371974]
[1642497326413,2.908,137.56,137.53,0.25]
[1642497326616,4.05515474,137.58,137.52,0.54921872]
[1642497326815,8.908,137.58,137.52,0.54921872]
[1642497327015,2.908,137.58,137.52,0.54921872]
[1642497327216,0.25,137.57,137.52,0.54921872]
[1642497327616,42.09620781,137.56,137.52,0.54921872]
[1642497328916,39.18820781,137.56,137.52,0.54921872]
[1642497329717,3.158,137.57,137.52,0.54921872]
[1642497329917,9.158,137.57,137.52,0.54921872]
[1642497330317,20.0644,137.57,137.5,0.25]
[1642497330520,10.48,137.56,137.46,40.1423]
[1642497330719,10.48,137.56,137.54,0.00921872]
[1642497330720,38.908,137.55,137.54,0.00921872]
[1642497330922,55.70239994,137.55,137.54,0.00921872]
[1642497331120,61.70239994,137.55,137.54,0.00921872]
[1642497331321,114.30951945,137.55,137.54,0.00921872]
[1642497331520,116.09857217,137.55,137.54,0.00921872]
[1642497331919,139.58057217,137.55,137.54,0.00921872]
[1642497332720,0.01078128,137.53,137.45,0.25]
[1642497332920,13.8187,137.52,137.45,0.25]
[1642497333120,2.908,137.52,137.44,10.9106]
[1642497333319,0.25,137.51,137.41,24.2133]
[1642497333522,0.25,137.51,137.43,36.362]
[1642497333721,6.0,137.52,137.44,37.81172705]
[1642497334121,16.49078128,137.53,137.44,37.81172705]
[1642497334354,10.49078128,137.53,137.47,42.24147936]
[1642497334752,10.49078128,137.53,137.48,0.25]
[1642497335754,39.22555401,137.52,137.47,42.24147936]
[1642497335954,39.22555401,137.52,137.44,24.1591]
[1642497336155,0.25,137.51,137.45,0.25]
[1642497336353,17.2732,137.51,137.43,10.9107]
[1642497336560,17.2732,137.51,137.41,4.14362862]
[1642497336561,75.278,137.5,137.41,4.14362862]
[1642497336753,0.25,137.49,137.41,4.14362862]
[1642497336956,2.91,137.48,137.41,4.14362862]
[1642497337154,9.791,137.48,137.4,23.0163]
[1642497337354,0.25,137.47,137.4,23.0163]
[1642497337755,39.22555401,137.46,137.41,0.25]
[1642497338255,0.25,137.45,137.39,10.9139]
[1642497338560,0.25,137.45,137.37,40.52152862]
[1642497338561,17.511,137.45,137.37,4.14362862]
[1642497338757,20.421,137.45,137.37,4.14362862]
[1642497338955,26.421,137.45,137.37,4.14362862]
[1642497339355,26.421,137.45,137.35,44.2751585]
[1642497339558,61.6042,137.45,137.37,10.9155]
[1642497341258,61.6042,137.45,137.38,0.25]
[1642497341858,61.6042,137.45,137.38,35.42731114]
[1642497343259,47.7781,137.45,137.38,46.34251114]
[1642497343459,16.48,137.45,137.38,46.34251114]
[1642497346262,16.48,137.45,137.38,52.34251114]
[1642497346762,2.91,137.48,137.38,52.60251114]
[1642497346961,10.48,137.48,137.38,52.60251114]
[1642497347165,16.48,137.48,137.38,52.60251114]
[1642497347364,10.48,137.48,137.38,52.60251114]
[1642497347665,10.48,137.48,137.38,124.97251114]
[1642497347864,10.48,137.48,137.38,126.59698409]
[1642497348065,4.05337313,137.51,137.38,137.07698409]
[1642497348265,14.53337313,137.52,137.42,10.9077]
[1642497348673,14.53337313,137.52,137.43,0.25]
[1642497348865,14.53337313,137.52,137.43,37.79501038]
[1642497349265,10.48,137.52,137.43,44.05501038]
[1642497349466,10.48,137.52,137.45,10.9074]
[1642497349866,10.48,137.52,137.46,0.25]
[1642497350268,10.48,137.52,137.46,49.28294802]
[1642497350468,53.56506489,137.52,137.47,10.9069]
[1642497350668,13.388,137.52,137.46,49.28294802]
[1642497351172,13.388,137.52,137.46,49.54294802]
[1642497351173,2.908,137.52,137.46,49.54294802]
[1642497351573,2.908,137.52,137.46,60.45164802]
[1642497351770,2.908,137.52,137.46,66.45164802]
[1642497352070,4.05337313,137.55,137.46,138.82164802]
[1642497352472,6.96137313,137.57,137.46,138.82164802]
[1642497353271,2.908,137.57,137.46,138.82164802]
[1642497353674,2.908,137.57,137.46,149.30164802]
[1642497354675,4.05337313,137.58,137.46,149.30164802]
[1642497354976,6.96137313,137.59,137.46,149.30164802]
[1642497355173,6.96137313,137.59,137.47,1.62447295]
[1642497355372,4.05337313,137.59,137.48,10.73]
[1642497355573,4.05337313,137.59,137.51,10.9009]
[1642497355774,4.05337313,137.59,137.52,0.25]
[1642497355977,2.908,137.62,137.52,0.25]
[1642497355978,4.05337313,137.6,137.52,0.25]
[1642497356175,4.05337313,137.6,137.52,39.6226856]
[1642497356375,6.96037313,137.6,137.52,39.8826856]
[1642497356574,6.96037313,137.6,137.54,10.9004]
[1642497356774,0.25,137.59,137.52,39.3726856]
[1642497356975,2.907,137.58,137.52,39.3726856]
[1642497357174,48.63795327,137.58,137.52,39.3726856]
[1642497357374,0.25,137.57,137.52,39.3726856]
[1642497357576,2.908,137.56,137.47,39.432]
[1642497357773,2.908,137.56,137.5,10.9045]
[1642497358176,2.908,137.56,137.51,0.25]
[1642497358376,0.25,137.55,137.5,10.9045]
[1642497358577,2.908,137.54,137.51,0.25]
[1642497358777,2.908,137.57,137.51,0.25]
[1642497358978,3.158,137.57,137.51,11.1548]
[1642497359176,3.158,137.57,137.51,0.25]
[1642497359678,9.158,137.57,137.51,0.25]
[1642497359878,3.158,137.57,137.51,0.25]
[1642497361083,3.158,137.57,137.51,11.1548]
[1642497361283,6.25,137.57,137.51,11.1548]
[1642497361480,0.25,137.57,137.51,11.1548]
[1642497362480,2.908,137.56,137.51,11.1548]
[1642497363080,4.05337313,137.58,137.51,11.1548]
[1642497363281,4.05337313,137.58,137.51,11.4148]
[1642497363482,4.05337313,137.58,137.51,11.1548]
[1642497363683,4.05337313,137.58,137.51,11.4148]
[1642497363882,4.05337313,137.6,137.51,11.4148]
[1642497365783,13.388,137.61,137.51,11.4148]
[1642497366187,2.908,137.61,137.51,17.4148]
[1642497366385,2.908,137.61,137.51,29.51927295]
[1642497366791,2.908,137.61,137.51,27.8948]
[1642497366990,4.05337313,137.62,137.51,27.6348]
[1642497367387,0.25,137.61,137.51,27.6348]
[1642497368890,0.25,137.61,137.51,27.8948]
[1642497369389,0.25,137.61,137.51,51.6212]
[1642497370891,0.25,137.61,137.51,123.9912]
[1642497372995,4.05337313,137.62,137.51,123.9912]
[1642497373491,4.05337313,137.63,137.51,123.9912]
[1642497373690,2.907,137.62,137.51,123.9912]
[1642497374889,2.907,137.62,137.51,123.7312]
[1642497375091,40.67090355,137.61,137.51,123.7312]
[1642497375391,3.157,137.6,137.51,107.0012]
[1642497375594,3.157,137.6,137.51,34.6312]
[1642497375794,10.48,137.59,137.5,38.96599683]
[1642497375990,43.17165125,137.58,137.5,38.96599683]
[1642497376190,24.2942,137.58,137.5,38.96599683]
[1642497376391,30.2942,137.58,137.5,38.96599683]
[1642497376591,27.3862,137.58,137.5,38.96599683]
[1642497376790,3.158,137.57,137.51,0.25]
[1642497376990,2.908,137.57,137.51,11.1549]
[1642497377891,2.908,137.57,137.51,0.25]
[1642497378094,2.908,137.57,137.47,59.3007]
[1642497378095,0.25,137.56,137.47,22.952]
[1642497378292,0.25,137.56,137.47,28.952]
[1642497378892,11.1572,137.56,137.48,49.35120766]
[1642497379094,34.71921786,137.55,137.48,49.35120766]
[1642497379492,0.25,137.56,137.48,60.25790766]
[1642497380093,31.6404,137.57,137.49,0.25]
[1642497380794,25.6404,137.57,137.49,0.25]
[1642497381194,21.6373,137.56,137.45,24.5607]
[1642497381395,2.908,137.55,137.45,30.5607]
[1642497381594,13.388,137.55,137.45,6.0]
[1642497381806,0.25,137.54,137.44,10.14362862]
[1642497381994,2.908,137.53,137.44,4.14362862]
[1642497382195,34.40614211,137.52,137.44,4.14362862]
[1642497382394,13.388,137.51,137.44,4.14362862]
[1642497382593,21.315,137.51,137.42,4.14362862]
[1642497382793,0.25,137.5,137.42,4.14362862]
[1642497382993,2.908,137.49,137.42,4.14362862]
[1642497383195,13.821,137.49,137.42,4.14362862]
[1642497383395,0.25,137.48,137.42,48.82181603]
[1642497383595,0.25,137.48,137.43,0.25]
[1642497383895,2.908,137.49,137.43,0.25]
[1642497384098,10.48,137.49,137.43,0.25]
[1642497384494,10.48,137.49,137.42,44.67818741]
[1642497384895,3.16,137.48,137.42,44.67818741]
[1642497385096,0.25,137.48,137.41,10.912]
[1642497385295,2.91,137.47,137.41,10.912]
[1642497385898,2.91,137.48,137.41,10.912]
[1642497386099,2.91,137.48,137.42,47.54086581]
[1642497386503,2.91,137.48,137.42,58.45276581]
[1642497386801,16.48,137.49,137.43,0.25]
[1642497387001,10.48,137.49,137.43,0.25]
[1642497387403,2.91,137.5,137.43,0.25]
[1642497387601,6.96137313,137.52,137.43,11.1605]
[1642497387801,0.25,137.51,137.43,11.4205]
[1642497388404,8.908,137.52,137.43,11.4205]
[1642497389001,0.25,137.51,137.43,11.1705]
[1642497389200,0.25,137.51,137.43,10.9105]
[1642497389601,38.90517629,137.5,137.43,10.9105]
[1642497389800,3.158,137.49,137.43,10.9105]
[1642497390002,3.158,137.49,137.42,47.54086581]
[1642497390202,9.158,137.49,137.42,47.54086581]
[1642497390829,9.158,137.49,137.4,22.6393]
[1642497391430,9.158,137.49,137.42,10.912]
[1642497391829,9.158,137.49,137.42,51.62489161]
[1642497393633,2.91,137.5,137.45,10.9082]
[1642497393831,26.73307313,137.52,137.45,10.9082]
[1642497394031,26.73307313,137.52,137.38,4.14362862]
[1642497394032,0.31933382,137.5,137.38,4.14362862]
[1642497394232,2.91,137.49,137.38,4.14362862]
[1642497394433,10.48,137.48,137.38,4.14362862]
[1642497394733,2.91,137.47,137.38,15.05812862]
[1642497394933,46.62247457,137.46,137.38,15.05812862]
[1642497395132,2.91,137.45,137.37,50.55451184]
[1642497395332,0.25,137.44,137.37,4.14362862]
[1642497395634,2.911,137.43,137.37,4.14362862]
[1642497395832,0.25,137.42,137.37,4.14362862]
[1642497396033,2.911,137.41,137.37,4.14362862]
[1642497396238,41.00691841,137.4,137.33,4.14362862]
[1642497396434,41.25691841,137.4,137.33,4.14362862]
[1642497396634,121.41597113,137.4,137.33,4.14362862]
[1642497396933,84.63905272,137.39,137.33,4.14362862]
[1642497397135,2.912,137.38,137.33,4.14362862]
[1642497397334,10.48,137.37,137.3,4.14362862]
[1642497397536,10.48,137.37,137.31,41.15863594]
[1642497397735,0.25,137.36,137.31,41.15863594]
[1642497399939,3.162,137.36,137.31,41.15863594]
[1642497400740,0.25,137.36,137.31,41.15863594]
[1642497400944,13.392,137.39,137.32,0.25]
[1642497401242,22.5117,137.4,137.32,0.25]
[1642497401646,10.48,137.41,137.32,0.25]
[1642497402139,6.96537313,137.43,137.34,10.9168]
[1642497402340,4.05337313,137.43,137.35,0.25]
[1642497402541,4.05337313,137.43,137.35,72.62]
[1642497402940,4.05337313,137.43,137.36,45.98321547]
[1642497403142,2.911,137.46,137.37,72.37]
[1642497403143,4.05337313,137.46,137.37,72.37]
[1642497403340,4.05337313,137.46,137.37,78.88]
[1642497404141,36.7294,137.47,137.37,78.88]
[1642497404341,0.25,137.46,137.37,78.88]
[1642497404545,0.25,137.46,137.37,89.7909]
[1642497404841,36.7294,137.47,137.37,89.7909]
[1642497405245,33.8184,137.47,137.37,89.7909]
[1642497405648,33.8184,137.47,137.37,11.4209]
[1642497406148,33.8184,137.47,137.38,72.37]
[1642497406352,10.48,137.47,137.4,83.2809]
[1642497406548,2.91,137.5,137.4,83.2809]
[1642497406749,0.25,137.49,137.41,0.25]
[1642497407450,2.91,137.5,137.43,10.9098]
[1642497407750,36.03380841,137.5,137.44,47.32880559]
[1642497408553,2.91,137.5,137.44,47.32880559]
[1642497408752,0.25,137.49,137.44,47.32880559]
[1642497410854,2.91,137.5,137.45,0.25]
[1642497411056,13.388,137.51,137.45,0.25]
[1642497411258,16.48,137.51,137.45,0.25]
[1642497411455,16.48,137.51,137.44,47.32880559]
[1642497411856,62.9421551,137.51,137.44,47.32880559]
[1642497412457,16.48,137.51,137.44,47.32880559]
[1642497413057,0.25,137.5,137.45,0.25]
[1642497413261,16.48,137.51,137.45,0.25]
[1642497413860,16.48,137.51,137.45,11.1586]
[1642497414058,24.3355,137.52,137.45,11.1586]
[1642497414263,0.25,137.51,137.45,11.4186]
[1642497414460,26.58317313,137.53,137.45,11.4186]
[1642497414661,4.05337313,137.53,137.45,83.7886]
[1642497415159,4.05337313,137.54,137.45,83.7886]
[1642497416166,6.0,137.55,137.45,83.7886]
[1642497416364,17.44137313,137.56,137.45,83.7886]
[1642497416565,23.44137313,137.56,137.45,83.7886]
[1642497417064,23.44137313,137.56,137.45,91.5656]
[1642497417265,0.25,137.55,137.45,91.5656]
[1642497417464,19.388,137.56,137.45,91.5656]
[1642497417465,8.908,137.56,137.45,91.5656]
[1642497417665,8.908,137.56,137.45,97.5656]
[1642497418768,6.0,137.56,137.45,97.5656]
[1642497418969,12.96137313,137.57,137.45,97.5656]
[1642497419671,6.96137313,137.57,137.46,10.48]
[1642497419968,4.05337313,137.57,137.5,10.9013]
[1642497420367,4.05337313,137.57,137.51,38.90847791]
[1642497420568,39.77327014,137.57,137.51,38.90847791]
[1642497420769,39.77327014,137.57,137.51,39.16847791]
[1642497420967,35.71989701,137.57,137.51,39.16847791]
[1642497422868,2.908,137.58,137.51,39.16847791]
[1642497423269,0.25,137.57,137.51,39.16847791]
[1642497423470,0.25,137.57,137.51,38.90847791]
[1642497423670,2.07149956,137.56,137.51,38.90847791]
[1642497423972,4.97949956,137.56,137.51,0.25]
[1642497424573,2.07149956,137.56,137.48,11.1556]
[1642497424773,44.31880503,137.55,137.48,58.93044282]
[1642497424972,44.31880503,137.55,137.48,58.67044282]
[1642497425876,2.07149956,137.54,137.48,58.93044282]
[1642497427278,2.07149956,137.54,137.48,64.93044282]
[1642497427776,2.07149956,137.55,137.48,64.93044282]
[1642497427978,2.07149956,137.55,137.48,64.67044282]
[1642497428578,2.07149956,137.55,137.48,58.67044282]
[1642497429279,2.07149956,137.55,137.48,58.93044282]
[1642497430882,43.77640353,137.55,137.48,58.93044282]
[1642497431083,43.77640353,137.55,137.48,0.25]
[1642497431282,43.77640353,137.55,137.47,10.907]
[1642497431283,3.158,137.54,137.47,10.907]
[1642497431484,3.158,137.54,137.46,1.96986078]
[1642497431683,20.0668,137.54,137.46,1.96986078]
[1642497431903,30.5468,137.54,137.46,1.96986078]
[1642497432106,2.07149956,137.52,137.45,47.11377193]
[1642497432404,40.24000678,137.52,137.45,47.11377193]
[1642497432604,2.07149956,137.52,137.45,47.11377193]
[1642497432803,2.07149956,137.52,137.47,10.9064]
[1642497433406,2.07149956,137.51,137.47,10.9064]
[1642497433704,2.07149956,137.51,137.48,46.4776947]
[1642497433904,2.07149956,137.51,137.48,46.7276947]
[1642497434304,2.07149956,137.51,137.48,46.4776947]
[1642497434708,2.07149956,137.51,137.47,10.9064]
[1642497434906,2.07149956,137.51,137.45,10.9079]
[1642497435306,2.07149956,137.52,137.45,11.1679]
[1642497435710,43.41371911,137.52,137.45,59.07161839]
[1642497435907,43.41371911,137.52,137.46,11.1577]
[1642497436306,0.25,137.51,137.46,0.25]
[1642497436506,7.406,137.51,137.44,1.96986078]
[1642497436706,2.908,137.5,137.44,7.96986078]
[1642497436906,0.25,137.49,137.44,7.96986078]
[1642497437110,0.25,137.49,137.44,6.0]
[1642497437509,0.25,137.49,137.43,49.3326474]
[1642497437909,8.908,137.51,137.43,49.5926474]
[1642497438110,0.25,137.5,137.43,60.5028474]
[1642497438309,0.25,137.5,137.43,52.53298662]
[1642497438510,0.25,137.5,137.43,58.53298662]
[1642497438909,0.25,137.5,137.44,0.25]
[1642497439309,8.07149956,137.51,137.44,0.25]
[1642497439509,8.07149956,137.51,137.44,11.1593]
[1642497439913,0.25,137.5,137.44,11.4193]
[1642497440111,8.07149956,137.51,137.44,11.4193]
[1642497440711,2.07149956,137.51,137.44,11.4193]
[1642497440913,2.07149956,137.51,137.45,72.37]
[1642497441119,2.07149956,137.52,137.46,47.34981281]
[1642497441313,8.07149956,137.52,137.46,47.85981281]
[1642497441514,2.07149956,137.52,137.46,47.85981281]
[1642497441713,8.07149956,137.52,137.46,47.85981281]
[1642497442114,6.0,137.52,137.46,47.85981281]
[1642497442312,10.97949956,137.53,137.46,47.85981281]
[1642497442515,38.57323826,137.52,137.46,36.70321281]
[1642497442713,38.57323826,137.52,137.46,0.26]
[1642497442912,51.92723826,137.52,137.45,1.96986078]
[1642497443117,13.388,137.51,137.44,1.96986078]
[1642497443314,0.25,137.5,137.44,1.96986078]
[1642497443516,42.0,137.48,137.41,4.14362862]
[1642497443714,42.61131654,137.46,137.41,4.14362862]
[1642497443918,2.91,137.45,137.41,4.14362862]
[1642497444114,3.16,137.45,137.41,4.14362862]
[1642497444316,9.16,137.45,137.41,4.14362862]
[1642497444714,9.16,137.45,137.4,42.92775]
[1642497444913,9.16,137.45,137.38,4.14362862]
[1642497445717,3.16,137.45,137.38,4.14362862]
[1642497445920,3.16,137.45,137.39,40.98279705]
[1642497446520,9.16,137.45,137.39,40.98279705]
[1642497446721,3.16,137.45,137.39,40.98279705]
[1642497446918,6.0,137.45,137.4,0.25]
[1642497447120,6.0,137.45,137.39,40.98279705]
[1642497447622,2.91,137.47,137.39,40.98279705]
[1642497447820,46.94509117,137.47,137.4,0.25]
[1642497448221,57.85949117,137.47,137.36,28.75362862]
[1642497448421,66.50349117,137.47,137.36,28.75362862]
[1642497448623,66.50349117,137.47,137.37,0.25]
[1642497449022,68.33949117,137.47,137.37,0.25]
[1642497449222,57.42509117,137.47,137.37,41.46117929]
[1642497449425,0.25,137.46,137.37,52.37607929]
[1642497449625,0.25,137.46,137.37,52.63607929]
[1642497450426,0.25,137.46,137.37,48.49091259]
[1642497451424,48.51509117,137.47,137.37,48.49091259]
[1642497451827,54.51509117,137.47,137.37,48.49091259]
[1642497452227,67.21854389,137.47,137.35,15.05972862]
[1642497452427,2.91,137.46,137.35,4.14362862]
[1642497452626,10.48,137.45,137.35,4.14362862]
[1642497452830,2.911,137.44,137.35,4.14362862]
[1642497453027,11.266,137.44,137.33,4.14362862]
[1642497453228,43.14946363,137.43,137.35,47.40158502]
[1642497453430,2.911,137.42,137.35,47.40158502]
[1642497453829,0.25,137.41,137.35,47.40158502]
[1642497454228,0.25,137.41,137.33,15.06122862]
[1642497454429,0.25,137.41,137.33,4.14362862]
[1642497454728,2.911,137.4,137.33,4.14362862]
[1642497454928,10.803,137.4,137.33,4.14362862]
[1642497455128,38.28509117,137.39,137.33,4.14362862]
[1642497455332,2.912,137.38,137.33,4.14362862]
[1642497455528,2.912,137.38,137.31,53.36028901]
[1642497455728,0.25,137.37,137.31,53.36028901]
[1642497456935,0.25,137.38,137.31,49.21666039]
[1642497457939,0.25,137.38,137.32,0.25]
[1642497458562,2.912,137.39,137.32,0.25]
[1642497458762,13.392,137.43,137.32,1.87550072]
[1642497458965,10.48,137.43,137.32,1.87550072]
[1642497459166,47.46602264,137.42,137.32,8.13550072]
[1642497459367,50.37702264,137.42,137.32,6.51]
[1642497459563,50.37702264,137.42,137.32,10.65362862]
[1642497459762,56.37702264,137.42,137.33,4.14601336]
[1642497459967,53.46602264,137.42,137.34,57.09097954]
[1642497460163,53.46602264,137.42,137.34,57.34097954]
[1642497460762,53.46602264,137.42,137.34,57.09097954]
[1642497461164,50.37702264,137.42,137.35,0.25]
[1642497461368,0.25,137.42,137.35,11.1665]
[1642497461869,0.25,137.43,137.35,10.9165]
[1642497462068,2.911,137.42,137.35,10.9165]
[1642497462269,0.25,137.41,137.35,10.9165]
[1642497462469,35.67110613,137.41,137.34,10.9176]
[1642497462669,35.67110613,137.41,137.35,0.25]
[1642497463369,35.67110613,137.41,137.33,10.40362862]
[1642497463568,2.911,137.4,137.33,6.26]
[1642497463768,0.25,137.39,137.33,0.26]
[1642497463969,0.25,137.39,137.33,11.1784]
[1642497464170,0.25,137.39,137.33,10.9184]
[1642497464370,0.25,137.39,137.33,11.1784]
[1642497464771,0.25,137.39,137.32,4.14362862]
[1642497464975,2.912,137.38,137.32,4.14362862]
[1642497465373,10.73,137.37,137.32,4.14362862]
[1642497465572,2.912,137.36,137.3,8.29054876]
[1642497465778,45.30419123,137.35,137.3,8.29054876]
[1642497465975,2.912,137.34,137.3,8.29054876]
[1642497466176,13.8369,137.34,137.3,8.29054876]
[1642497466378,0.25,137.33,137.3,8.29054876]
[1642497466577,6.06439994,137.32,137.3,8.29054876]
[1642497466777,0.25,137.31,137.3,8.29054876]
[1642497467178,0.25,137.31,137.3,4.14362862]
[1642497467380,0.25,137.31,137.25,15.06772862]
[1642497467578,0.25,137.31,137.25,4.14362862]
[1642497467778,36.13036357,137.31,137.25,4.14362862]
[1642497467979,36.13036357,137.31,137.25,10.14362862]
[1642497468384,36.13036357,137.31,137.25,4.14362862]
[1642497468782,2.912,137.3,137.24,8.29210595]
[1642497468984,11.391,137.3,137.24,8.29210595]
[1642497469183,10.73,137.29,137.24,8.29210595]
[1642497469408,2.914,137.28,137.24,8.29210595]
[1642497469609,41.9244696,137.27,137.24,8.29210595]
[1642497469810,2.914,137.26,137.24,8.29210595]
[1642497470208,2.914,137.26,137.24,4.14362862]
[1642497470414,3.03219997,137.25,137.23,0.85192795]
[1642497470913,0.25,137.24,137.23,0.85192795]
[1642497471610,3.28219997,137.24,137.23,0.85192795]
[1642497472010,3.28219997,137.24,137.2,4.14362862]
[1642497472210,2.915,137.23,137.2,4.14362862]
[1642497472910,2.915,137.23,137.18,4.14362862]
[1642497473110,0.25,137.22,137.18,42.48301886]
[1642497473311,35.76599141,137.24,137.18,48.48301886]
[1642497473712,35.76599141,137.24,137.18,10.14362862]
[1642497474314,35.76599141,137.24,137.19,4.15026065]
[1642497474914,0.25,137.24,137.19,4.15026065]
[1642497475318,0.25,137.25,137.19,4.15026065]
[1642497475516,0.25,137.25,137.19,8.29388927]
[1642497475916,42.5678021,137.25,137.19,8.29388927]
[1642497476318,48.5678021,137.25,137.19,8.29388927]
[1642497476516,2.915,137.24,137.19,8.29388927]
[1642497476716,8.792,137.24,137.19,8.29388927]
[1642497476917,0.25,137.23,137.19,8.29388927]
[1642497477116,2.915,137.22,137.19,8.29388927]
[1642497477316,0.25,137.21,137.19,4.15026065]
[1642497477516,6.06439994,137.21,137.19,4.15026065]
[1642497477716,6.31439994,137.21,137.19,4.15026065]
[1642497478118,6.06439994,137.21,137.19,4.15026065]
[1642497478316,6.06439994,137.21,137.18,10.14362862]
[1642497478516,6.06439994,137.21,137.18,6.0]
[1642497478920,6.06439994,137.21,137.17,10.14362862]
[1642497479119,13.8478,137.24,137.17,4.14362862]
[1642497479318,0.25,137.23,137.17,10.14362862]
[1642497479520,0.25,137.23,137.17,51.10921465]
[1642497480519,11.1834,137.23,137.17,10.14362862]
[1642497480719,19.1264,137.23,137.18,4.15060122]